Cogmind - Beta 9.4 @@@ ROGUE MODE // 2020.01.31 @ 23:26:53 Player: Zyalin Result: Destroyed by S-43 Plague with Heavy Machine Gun Performance ------------- Evolutions (7) 3500 Regions Visited (23) 4600 Robots Destroyed (378) 1890 Value Destroyed (16983) 16983 Prototype IDs (40) 800 Alien Tech Used (0) 0 Bonus (7187) 7187 TOTAL SCORE: 34960 Bonus ------- High Alert Combat Kills 4599 Follower Combat Kills 1237 Entered Garrisons 200 Used RIF Installer 500 Network Hubs Disabled 400 Met Data Miner 300 Met Imprinter 300 A7 Reached Mainframe 300 Met R17 at Cetus 500 Friendly Fire -1149 Cogmind --------- Core Integrity 0/1300 Matter 47/300 Energy 98/100 System Corruption 6% Temperature Cool (0) Movement Core (50) Location -3/Garrison Parts ------- > --- POWER (2) -------- (None) > --- PROPULSION (4) --- (None) > --- UTILITY (10) ----- Advanced Signal Interpreter Advanced Target Analyzer > --- WEAPON (5) ------- (None) > --- INVENTORY (4) ---- Advanced Heat Sink Hardened Medium Armor Plating Relay Coupler [NC] (29) Relay Coupler [Grunt] (28) Peak State ------------ > --- POWER ------------ Micro Fission Core Light Antimatter Reactor > --- PROPULSION ------- Improved Heavy Treads Centrium Heavy Treads > --- UTILITY ---------- Advanced Heat Sink Advanced Cooling System Improved Coolant Injector Large Storage Unit Large Storage Unit Long-range Sensor Array Improved Signal Interpreter Improved Targeting Computer Advanced Target Analyzer Advanced Transmission Jammer > --- WEAPON ----------- Wave Gun High-powered Shotgun Railgun Smartbomb Launcher > --- INVENTORY -------- Micro Fission Core Advanced Medium Treads Advanced Heavy Treads Advanced Heat Sink Advanced Heat Sink Advanced Heat Sink Large Storage Unit Matter Compressor Inertial Stasis Machine EM Shield Dynamic Insulation System Linear Accelerator Precision Rocket Launcher Micro-nuke Launcher Phasing Sabre [Rating: 123] Favorites ----------- Power F-cell Engine Engine F-cell Engine Power Core Micro Fission Core Reactor Quantum Reactor Propulsion Light Treads Treads Light Treads Leg Improved Aluminum Leg Hover Unit Improved Gravmag System Flight Unit Xenon Bombardment Thruster Utility Medium Storage Unit Device Weapon Cycler Storage Medium Storage Unit Processor Improved Signal Interpreter Protection Improved Medium Armor Plating Weapon KE Penetrator Energy Gun Shock Rifle Energy Cannon Heavy Plasma Cannon Ballistic Gun KE Penetrator Ballistic Cannon Magnetic Acceleration Cannon Launcher Improved Grenade Launcher Special Weapon Improved Plasma Cutter Slashing Weapon Phasing Sabre Special Melee Weapon Advanced Datajack Build | -11 -10 -9 -8 -7 -7 -7 -7 -7 -7 -6 -6 -6 -6 -6 -5 -5 -5 -5 -5 -5 -4 -3 -3 ------- Run | Scr Mat Mat Mat Fac Was Fac Low Low Zio Pro Fac Low Low Dat Pro Fac Ext Cet Arc Hub Fac Res Gar Slots Evolved 14 | . . 2 2 2 . . . . . . 2 . . . . 2 . . . . 2 2 . Power 1 | . . . . . . . . . . . . . . . . . . . . . 1 . . Propulsion 2 | . . . 1 . . . . . . . . . . . . . . . . . . 1 . Utility 8 | . . 1 1 1 . . . . . . 2 . . . . 1 . . . . 1 1 . Weapon 3 | . . 1 . 1 . . . . . . . . . . . 1 . . . . . . . Parts Attached 436 | 6 8 24 27 7 6 24 11 7 9 12 38 3 6 . 8 58 23 9 10 6 92 29 13 Power 38 | 1 2 2 2 1 . 3 . 2 . . 5 . . . . 1 1 3 . . 11 3 1 Engine 19 | 1 2 2 2 1 . 2 . 2 . . 5 . . . . 1 1 . . . . . . Core 6 | . . . . . . 1 . . . . . . . . . . . . . . 4 1 . Reactor 13 | . . . . . . . . . . . . . . . . . . 3 . . 7 2 1 Propulsion 63 | 2 . 5 5 . 2 3 2 1 1 2 4 1 . . . 9 5 1 3 1 11 2 3 Treads 58 | 2 . 3 5 . 1 3 2 1 1 2 4 1 . . . 9 5 1 3 1 11 2 1 Leg 2 | . . 2 . . . . . . . . . . . . . . . . . . . . . Wheel . | . . . . . . . . . . . . . . . . . . . . . . . . Hover 1 | . . . . . 1 . . . . . . . . . . . . . . . . . . Flight 2 | . . . . . . . . . . . . . . . . . . . . . . . 2 Utility 139 | 1 2 4 7 3 1 8 3 1 5 2 12 1 4 . 3 26 8 2 2 3 23 13 5 Device 70 | . . 2 3 2 1 3 . . 1 1 5 1 3 . 3 15 6 2 1 1 14 4 2 Storage 13 | 1 2 1 1 . . 1 . . 1 . 2 . . . . 2 . . . 1 1 . . Processor 10 | . . . . . . 1 . . . . 1 . . . . 3 . . . . 2 3 . Hackware . | . . . . . . . . . . . . . . . . . . . . . . . . Protection 46 | . . 1 3 1 . 3 3 1 3 1 4 . 1 . . 6 2 . 1 1 6 6 3 Artifact . | . . . . . . . . . . . . . . . . . . . . . . . . Weapon 196 | 2 4 13 13 3 3 10 6 3 3 8 17 1 2 . 5 22 9 3 5 2 47 11 4 Energy Gun 61 | 1 . 1 6 2 2 7 1 . 2 . 6 1 . . 1 1 2 1 2 . 21 4 . Energy Cannon 14 | . . . . 1 . 1 1 . . . 2 . 1 . 2 3 1 . . . 2 . . Ballistic Gun 67 | 1 3 8 4 . . 1 . 3 . 5 4 . . . . 7 4 2 2 2 19 2 . Ballistic Cannon 16 | . . 3 1 . . . 1 . . . . . 1 . . 5 2 . . . . 3 . Launcher 25 | . 1 1 2 . 1 1 1 . 1 3 2 . . . 2 1 . . . . 4 2 3 Special Weapon 4 | . . . . . . . 1 . . . 2 . . . . 1 . . . . . . . Impact Weapon . | . . . . . . . . . . . . . . . . . . . . . . . . Slashing Weapon 8 | . . . . . . . 1 . . . 1 . . . . 4 . . . . 1 . 1 Piercing Weapon . | . . . . . . . . . . . . . . . . . . . . . . . . Special Melee Weapon 1 | . . . . . . . . . . . . . . . . . . . 1 . . . . Unidentified Prototypes 16 | . . 1 2 . . 1 . . 1 . 3 . . . . 2 . 4 . . 2 . . Parts Lost 125 | . 2 2 8 . 4 5 3 . . 3 4 . . . 3 12 3 . . . 44 11 21 Power 11 | . 1 . 1 . . 1 . . . . . . . . . . . . . . 5 1 2 Propulsion 18 | . . 1 2 . . 1 . . . . 1 . . . . 4 . . . . 3 1 5 Utility 31 | . . . 1 . . 1 1 . . 1 . . . . 3 3 1 . . . 8 3 9 Weapon 65 | . 1 1 4 . 4 2 2 . . 2 3 . . . . 5 2 . . . 28 6 5 Highest Loss Streak 13 | . 2 1 7 . 3 4 2 . . 2 2 . . . 2 4 1 . . . 6 6 13 Average Slot Usage (%) 93 | . 94 95 98 97 53 74 89 100 100 99 99 98 99 100 97 98 99 95 94 94 89 83 67 Engine 4 | . 14 11 9 7 4 4 7 7 7 7 6 6 6 6 6 5 5 . . . . . . Reactor 1 | . . . . . . . . . . . . . . . . . . 4 5 5 6 3 2 Treads 16 | . 28 14 27 23 15 12 23 23 23 23 19 20 20 20 20 16 17 12 11 11 10 9 7 Device 15 | . . 13 9 12 7 11 15 15 15 15 21 26 23 20 17 15 13 18 17 17 20 18 9 Storage 10 | . 22 15 17 15 6 2 7 7 7 7 11 13 13 13 13 11 11 11 11 11 10 9 7 Processor 6 | . . . . . . 2 . . . . . 6 6 6 6 12 14 11 11 11 10 14 13 Protection 6 | . . 1 7 7 4 10 7 15 14 14 11 . 2 6 6 3 5 3 4 5 3 3 6 Energy Gun 6 | . 7 . 9 15 6 11 12 2 4 10 9 11 10 6 9 1 2 7 11 9 8 3 2 Energy Cannon 2 | . . . . 4 1 1 6 7 7 4 3 6 4 6 2 4 5 3 . . 1 . . Ballistic Gun 10 | . 21 21 13 2 . 5 5 8 7 12 11 6 6 6 6 8 13 16 15 18 12 8 . Ballistic Cannon 2 | . . 8 3 7 1 . . 7 5 . . . 3 6 6 6 3 . . . . 1 3 Naked Turns 75 | . . . . . 75 . . . . . . . . . . . . . . . . . . Heaviest Build 131 | 11 28 38 56 75 75 54 51 48 52 51 61 55 61 61 61 99 102 103 103 108 131 102 98 Greatest Support 155 | 40 40 46 79 76 76 76 79 79 71 71 63 60 60 60 60 73 76 126 126 108 107 155 145 Greatest Overweight (x) 5 | . . 2 1 . . 5 . . . . 1 . 1 1 1 2 1 1 . . 1 . 1 Average Overweight (x) . | . . . . . . . . . . . . . . 1 . . 1 . . . . . . Largest Inventory Capacity 24 | 6 10 10 16 16 16 6 6 6 6 6 12 12 12 12 12 16 16 16 16 18 24 16 16 Average Capacity 12 | 4 7 10 14 16 9 4 6 6 6 6 11 12 12 12 12 12 16 16 16 17 17 16 14 Most Carried 18 | . 9 10 16 16 16 6 6 6 6 6 12 12 12 12 12 16 16 16 16 18 18 16 14 Average Carried 11 | . 3 9 13 15 9 4 6 6 6 6 10 11 11 12 11 12 15 15 15 17 16 13 11 Final Capacity 18 | 6 10 10 16 16 4 6 6 6 6 6 12 12 12 12 12 16 16 16 16 18 16 16 4 Final Carried 18 | . 9 10 14 16 4 6 6 6 6 6 12 12 12 12 12 16 16 16 16 18 16 15 4 Class Distribution -------------------- 22% | Scavenger-Tank 20% | Scavenger-Skirmisher 16% | Scavenger-Gunner 11% | Mutant 9% | Tank 7% | Gunner 7% | Scavenger-Mutant 3% | Scavenger-Assassin Dominant Class ---------------- Mutant | -10/Materials Gunner | -9/Materials Tank | -8/Materials Gunner | -7/Factory Mutant | -7/Waste Tank | -7/Factory Tank | -7/Lower Caves Scavenger-Tank | -7/Lower Caves Scavenger-Mutant | -7/Zion Scavenger-Tank | -6/Proximity Caves Scavenger-Tank | -6/Factory Scavenger-Gunner | -6/Lower Caves Scavenger-Skirmisher | -6/Lower Caves Scavenger-Skirmisher | -6/Data Miner Scavenger-Skirmisher | -5/Proximity Caves Scavenger-Tank | -5/Factory Scavenger-Skirmisher | -5/Extension Scavenger-Tank | -5/Cetus Scavenger-Gunner | -5/Archives Scavenger-Skirmisher | -5/Hub_04(d) Scavenger-Skirmisher | -4/Factory Scavenger-Mutant | -3/Research Mutant | -3/Garrison Resources | -11 -10 -9 -8 -7 -7 -7 -7 -7 -7 -6 -6 -6 -6 -6 -5 -5 -5 -5 -5 -5 -4 -3 -3 ----------- Run | Scr Mat Mat Mat Fac Was Fac Low Low Zio Pro Fac Low Low Dat Pro Fac Ext Cet Arc Hub Fac Res Gar Matter Collected 11269 | 140 264 935 1038 61 133 315 203 215 70 324 767 138 115 . 328 1425 864 343 345 217 2328 601 100 Remotely 483 | . . 483 . . . . . . . . . . . . . . . . . . . . . Salvage Created 17546 | . 327 746 1975 173 231 663 808 443 . 614 1390 165 118 . 378 1806 626 508 459 906 4534 576 100 Parts 728 | . 28 63 97 12 . 24 24 8 . 22 59 5 5 . 10 69 24 12 23 38 181 16 8 Haulers Intercepted 7 | . 1 3 2 . . . . . . . 1 . . . . . . . . . . . . Recyclers Shooed 9 | . . . 1 . . . . . . . 1 . . . . 1 1 . . . 4 1 . Parts Field Recycled . | . . . . . . . . . . . . . . . . . . . . . . . . Retrieved Matter . | . . . . . . . . . . . . . . . . . . . . . . . . Parts Self-Destructed 69 | . . . . . . . 14 13 . 20 . 3 11 . 8 . . . . . . . . Prevented 5 | . . . . . . . 4 . . . . 1 . . . . . . . . . . . Kills | -11 -10 -9 -8 -7 -7 -7 -7 -7 -7 -6 -6 -6 -6 -6 -5 -5 -5 -5 -5 -5 -4 -3 -3 ------- Run | Scr Mat Mat Mat Fac Was Fac Low Low Zio Pro Fac Low Low Dat Pro Fac Ext Cet Arc Hub Fac Res Gar Combat Hostiles Destroyed 297 | . 15 14 43 4 1 8 13 7 . 20 16 5 2 . 9 28 6 6 4 9 71 12 4 Melee 4 | . . . . . . 1 . . . . . . . . . . 2 . . . . . 1 Guns 163 | . 12 8 34 . . 3 5 4 . 2 12 2 1 . 3 9 2 5 4 2 47 7 1 Cannons 43 | . . 4 1 4 . . . 3 . 3 2 3 1 . 2 15 2 . . . 1 2 . AOE 78 | . 3 2 8 . 1 3 8 . . 15 2 . . . 4 4 . . . 4 19 3 2 Classes Destroyed 21 | . 4 6 2 . 1 2 1 . . 2 . . . . . . . . . 1 2 . . Worker 19 | . 1 4 1 . . 1 . . . . 2 . . . . 3 1 . . 3 3 . . Builder 18 | . . 5 2 . . . . . . . 3 . . . . . 2 . . 1 5 . . Tunneler 3 | . . 2 . . . . . . . . . . . . . . . . . 1 . . . Hauler 7 | . 1 3 2 . . . . . . . 1 . . . . . . . . . . . . Recycler 14 | . . 1 . . . 3 . . . . 2 . . . . 4 1 . . 1 2 . . Minesweeper 1 | . . . . . . . 1 . . . . . . . . . . . . . . . . Mechanic 1 | . . . . . . . . . . . . . . . . . . . . . 1 . . Operator 7 | . . . 2 1 . . . . . . . . . . . 1 . . 2 . 1 . . Watcher 7 | . . 2 . . . . . . . . 1 . . . . . . 1 . 2 1 . . Swarmer 52 | . 12 6 6 2 . . 1 1 . 5 . 4 . . . 5 . . . 2 4 . 4 Saboteur 4 | . . . . . . . . . . 1 . . . . . . . . . . 3 . . Grunt 118 | . 3 3 25 1 . . 7 5 . 10 8 . 2 . 7 9 2 1 . . 30 5 . Brawler 14 | . . . 4 . . . 1 . . 3 . . . . 1 1 . . . . 4 . . Duelist 11 | . . 1 1 . . . 2 1 . 1 1 . . . 1 1 . . . . 2 . . Protector 2 | . . . . . . . . . . . . . . . . . . . . 2 . . . Sentry 46 | . . 4 7 1 . 4 2 . . 1 3 1 . . . 5 3 . 4 3 6 2 . Hunter 17 | . . . . . . 2 . . . . 2 . . . . 1 . . . . 10 2 . Programmer 24 | . . . . . . 2 . . . . 2 . . . . 6 . . . . 11 3 . Behemoth 1 | . . . . . . . . . . . . . . . . . . . . . 1 . . Compactor 1 | . . . . . 1 . . . . . . . . . . . . . . . . . . Cetus Guard 5 | . . . . . . . . . . . . . . . . . . 5 . . . . . Lightning 2 | . . . . . . . . . . . . . . . . . . . . 2 . . . Thug 1 | . . . . . . . . . . . . . . . . . . 1 . . . . . Savage 1 | . . . . . . . . . . 1 . . . . . . . . . . . . . Guerrilla 1 | . . . . . . . . . . . . . . . . . 1 . . . . . . Fireman 1 | . . . . . . . . . . 1 . . . . . . . . . . . . . Best Kill Streak 15 | . 3 5 15 3 1 1 9 3 . 9 6 3 2 . 4 5 2 2 2 11 11 2 2 Combat Bots Only 10 | . 3 5 10 3 1 1 9 3 . 9 4 3 2 . 4 4 2 2 2 7 8 2 2 Max Kills in Single Turn 8 | . 2 2 4 1 1 1 4 1 . 5 2 1 1 . 2 2 2 2 1 8 4 2 2 Gunslinging 1 | . . . . . . . . . . . . . . . . 1 . . . . 1 . . Exploded 4 | . 2 2 4 . 1 1 4 . . 4 1 . . . 2 2 . . . 4 4 1 2 Melee 1 | . . . . . . 1 . . . . . . . . . . 1 . . . . . 1 Uniques/NPCs Destroyed . | . . . . . . . . . . . . . . . . . . . . . . . . Combat | -11 -10 -9 -8 -7 -7 -7 -7 -7 -7 -6 -6 -6 -6 -6 -5 -5 -5 -5 -5 -5 -4 -3 -3 -------- Run | Scr Mat Mat Mat Fac Was Fac Low Low Zio Pro Fac Low Low Dat Pro Fac Ext Cet Arc Hub Fac Res Gar Damage Taken 29335 | . 524 743 2001 67 414 1229 557 236 . 775 1572 169 58 . 593 3130 509 589 294 665 9261 2310 3639 Core 3183 | . 85 93 198 . 96 140 54 16 . 88 134 . . . 36 173 25 35 . 86 614 87 1223 Absorbed by Shields 287 | . . . . . . . . . . . . . . . . . 177 36 . . . . 74 Reduced by Siege Mode 34 | . . . . . . . . . . . . . . . . . . . 7 . 27 . . Core Remaining (%) 67 | 100 66 76 64 . . . . . . 43 . . . . 80 . . . . 68 46 . . Volleys Fired 780 | . 43 68 102 8 16 31 18 14 . 18 49 11 5 . 22 81 18 22 17 11 174 40 12 Largest 5 | . 2 3 3 4 4 4 4 4 . 4 4 4 4 . 4 5 5 5 5 5 5 5 2 Hottest 367 | . 60 102 136 214 229 243 243 299 . 258 278 243 221 . 221 302 302 274 272 272 367 279 154 Shots Fired 2509 | . 83 195 289 29 42 72 52 55 . 36 171 38 20 . 67 301 69 82 73 56 661 101 17 Gun 1942 | . 81 145 256 19 19 59 34 19 . 18 133 27 10 . 36 154 46 71 73 56 612 64 10 Cannon 460 | . . 48 28 10 15 9 12 28 . 7 24 11 10 . 24 137 23 11 . . 32 27 4 Launcher 82 | . 2 2 5 . 8 4 6 . . 11 4 . . . 7 3 . . . . 17 10 3 Special 25 | . . . . . . . . 8 . . 10 . . . . 7 . . . . . . . Kinetic 1474 | . 63 179 191 11 7 15 11 31 . 7 76 11 10 . 30 221 50 62 51 35 327 82 4 Thermal 687 | . 18 14 61 10 22 33 24 24 . 18 90 20 5 . 15 49 17 20 22 21 188 6 10 Explosive 72 | . 2 2 5 . 8 . . . . 11 4 . . . 7 3 . . . . 17 10 3 Electromagnetic 276 | . . . 32 8 5 24 17 . . . 1 7 5 . 15 28 2 . . . 129 3 . Robot Hit Streak 30 | . 16 13 24 9 13 9 24 8 . 10 17 8 9 . 9 22 12 10 14 14 30 14 7 Robot Miss Streak 6 | . 2 5 5 1 4 6 1 4 . 4 4 3 2 . 4 5 5 4 3 3 6 2 3 Penetration Max 2 | . . . . . . . . 1 . . 2 1 1 . 1 1 1 1 1 1 1 2 . Secondary Targets 21 | . 2 . 8 . . . . . . . . . . . . 1 . 1 1 . 8 . . Max Gunslinging Chain 1 | . 1 . 1 . . . . . . . . . . . . 1 . 1 1 . 1 . . Shots Hit Robots 1665 | . 62 120 217 17 34 48 44 35 . 25 128 20 14 . 43 192 52 56 49 22 406 69 12 Core Hits 886 | . 24 43 97 11 9 23 28 18 . 56 83 7 4 . 24 92 21 21 18 38 221 39 9 Critical Hits 86 | . 1 2 . 1 . 1 . 1 . . 2 2 1 . 6 12 8 7 5 2 26 9 . Critical Kills 30 | . 1 1 . 1 . . . . . . . . 1 . 2 3 2 2 4 1 7 5 . Critical Parts Destroyed 45 | . . 1 . . . 1 . 1 . . 2 2 . . 3 8 4 3 . 1 15 4 . Melee Attacks 59 | . . . . . . . . . . . 1 . . . . 10 4 . 2 . 6 . 36 Impact . | . . . . . . . . . . . . . . . . . . . . . . . . Slashing 57 | . . . . . . . . . . . 1 . . . . 10 4 . . . 6 . 36 Piercing . | . . . . . . . . . . . . . . . . . . . . . . . . Sneak Attacks 2 | . . . . . . . . . . . . . . . . . . . 2 . . . . Combat Hostiles . | . . . . . . . . . . . . . . . . . . . . . . . . Follow-up Attacks . | . . . . . . . . . . . . . . . . . . . . . . . . Damage Inflicted 50591 | . 774 2018 4353 265 1282 1144 1471 813 . 2844 2962 366 207 . 1644 5479 1744 1578 1166 2722 14175 2777 807 Guns 24492 | . 571 1135 3041 135 256 800 423 305 . 216 1771 74 62 . 174 1689 925 1336 1166 696 8404 1237 76 Cannons 8926 | . . 646 373 130 262 158 208 452 . 178 546 292 145 . 434 2606 637 242 . . 567 943 107 Explosions 16436 | . 203 237 939 . 764 173 840 . . 2450 581 . . . 1036 1082 . . . 2023 5183 597 328 Melee 427 | . . . . . . . . . . . . . . . . . 182 . . . . . 245 Ramming 88 | . . . . . . 13 . . . . . . . . . . . . . 3 21 . 51 Kinetic 21033 | . 416 1679 2202 148 125 225 176 475 . 111 1175 24 103 . 358 3298 1047 1226 934 423 4794 1987 107 Thermal 11057 | . 155 102 796 14 389 648 714 338 . 283 1188 312 68 . 156 1240 467 352 232 273 3103 151 76 Explosive 12190 | . 203 237 771 . 764 . . . . 2450 581 . . . 1036 673 . . . . 4550 597 328 Electromagnetic 5796 | . . . 584 103 4 258 581 . . . 18 30 36 . 94 268 48 . . 2023 1707 42 . Impact . | . . . . . . . . . . . . . . . . . . . . . . . . Slashing 427 | . . . . . . . . . . . . . . . . . 182 . . . . . 245 Piercing . | . . . . . . . . . . . . . . . . . . . . . . . . Highest Corruption 14 | . 2 . 3 1 1 2 3 3 3 . 4 3 . . . 7 8 8 8 14 8 6 6 Average Corruption 4 | . 1 . 3 1 1 1 2 3 3 . 3 1 . . . 3 7 8 8 8 5 5 6 Corruption Purged 5 | . . . . . . . . . . . 1 3 . . . 1 . . . . . . . Effects 294 | . . . 7 1 2 14 3 15 . . 20 2 . . . 39 42 18 19 21 54 16 21 Message Errors 74 | . . . . 1 . 4 . 4 . . 4 . . . . 7 13 7 5 6 13 5 5 Matter Fused 36 | . . . . . . . . 1 . . 6 . . . . 8 4 1 5 3 6 1 1 Heat Flow Errors 27 | . . . 2 . . 2 . 4 . . 2 . . . . . 6 1 2 1 5 . 2 Energy Discharges 32 | . . . 2 . . 5 1 1 . . 3 1 . . . 3 5 . 1 . 6 . 4 Parts Rejected 2 | . . . . . . . . . . . . . . . . 1 . . . 1 . . . Data Loss (minor) 34 | . . . 2 . . 3 . 3 . . 2 1 . . . 5 7 1 1 1 3 4 1 Data Loss (major) 6 | . . . . . . . . . . . . . . . . . 1 1 . . 2 1 1 Misfires 7 | . . . . . . . . . . . . . . . . . 1 . . 1 1 2 2 Targeting Errors 71 | . . . 1 . 2 . 2 2 . . 2 . . . . 13 4 7 5 8 17 3 5 Weapon Failures 5 | . . . . . . . . . . . 1 . . . . 2 1 . . . 1 . . Overload Shots . | . . . . . . . . . . . . . . . . . . . . . . . . Overflow Damage 993 | . . 6 73 . . 6 8 . . 75 45 . . . 42 222 4 11 . 68 327 77 29 Projectiles 306 | . . 6 . . . 6 8 . . . 29 . . . 42 88 4 11 . . 35 77 . Explosions 665 | . . . 73 . . . . . . 75 16 . . . . 134 . . . 68 292 . 7 Melee 22 | . . . . . . . . . . . . . . . . . . . . . . . 22 Knockbacks 51 | . . 6 4 . . 1 . 5 . . . . 2 . 2 20 1 . . . . 7 3 Impact 1 | . . . . . . 1 . . . . . . . . . . . . . . . . . Kinetic 46 | . . 6 4 . . . . 3 . . . . 2 . 2 19 1 . . . . 6 3 Secondary 4 | . . . . . . . . 2 . . . . . . . 1 . . . . . 1 . Self-Inflicted Damage 1054 | . . . . . 222 54 98 . . 61 . . . . . 121 . . . 100 157 95 146 Shots 29 | . . . . . 5 3 5 . . 2 . . . . . 2 . . . 1 6 3 2 Rammed 19 | . . . . . . 7 . . . . . . . . . . . . . 1 3 . 8 Targets Rammed 20 | . . . . . . 8 . . . . . . . . . . . . . 1 3 . 8 Kicked . | . . . . . . . . . . . . . . . . . . . . . . . . Crushed 1 | . . . . . . 1 . . . . . . . . . . . . . . . . . Highest Temperature 443 | . 70 389 215 159 222 199 199 198 . 293 400 222 93 . 300 314 389 182 198 185 443 135 214 Average Temperature 90 | . 27 135 101 68 92 92 114 108 . 89 85 91 51 . 92 75 101 105 80 73 83 45 93 Received Heat Transfer 4795 | . 120 156 1080 15 . 216 108 63 . 258 426 . 27 . 270 378 81 67 36 45 1188 252 9 Effects 8 | . . 3 . . 3 . . . . . . . . . . . . . . . 2 . . Shutdowns 2 | . . 1 . . . . . . . . . . . . . . . . . . 1 . . Energy Bleed 1 | . . . . . . . . . . . . . . . . . . . . . 1 . . Interference 4 | . . 1 . . 3 . . . . . . . . . . . . . . . . . . Short Circuit 1 | . . 1 . . . . . . . . . . . . . . . . . . . . . Siege Activations 2 | . . . . . . . . . . . . . . . . . . . 1 . 1 . . Total Turns 46 | . . . . . . . . . . . . . . . . . . . 10 . 36 . . Longest Duration 36 | . . . . . . . . . . . . . . . . . . . 10 . 36 . . Robots Corrupted 6 | . . . . . . . . . . . . . . . . . . . . 3 3 . . Combat Hostiles 6 | . . . . . . . . . . . . . . . . . . . . 3 3 . . Parts Fried 34 | . . . 3 . . . 3 . . . . . . . . 2 . 1 . 13 12 . . Impact Corruptions . | . . . . . . . . . . . . . . . . . . . . . . . . Robots Melted 3 | . . . . . . 1 . . . . . . . . . . . 1 . . 1 . . Combat Hostiles 3 | . . . . . . 1 . . . . . . . . . . . 1 . . 1 . . Parts Melted 19 | . . . 1 . . 2 3 1 . 1 4 1 . . . 1 1 . . . 4 . . Heat Transferred 17161 | . 350 259 1461 37 646 1111 1150 950 . 535 2014 487 100 . 237 1355 480 535 370 370 4381 222 111 Parts Sabotaged 5 | . . . . . . . . . . . . . . . . . . . . . 2 3 . Parts Stolen 1 | . . . . . . . . . . . . 1 . . . . . . . . . . . Parts Stripped . | . . . . . . . . . . . . . . . . . . . . . . . . Power Chain Reactions 10 | . . . 1 . . 3 3 . . . . . . . . . . . . . 3 . . Missiles Intercepted . | . . . . . . . . . . . . . . . . . . . . . . . . Alert | -11 -10 -9 -8 -7 -7 -7 -7 -7 -7 -6 -6 -6 -6 -6 -5 -5 -5 -5 -5 -5 -4 -3 -3 ------- Run | Scr Mat Mat Mat Fac Was Fac Low Low Zio Pro Fac Low Low Dat Pro Fac Ext Cet Arc Hub Fac Res Gar Peak Influence 1916 | . 236 296 959 561 196 256 . . . . 374 . . . . 783 559 563 338 1085 1916 1198 930 Average Influence 513 | . 95 184 499 492 178 109 . . . . 235 . . . . 273 418 472 280 123 1100 1055 869 Maximum Alert Level 5 | . 1 1 3 2 . 1 . . . . 1 . . . . 3 2 2 1 3 5 4 3 Low Security (%) 29 | 100 94 64 10 . 100 88 . . . . 41 . . . . 42 . . 18 79 . . . Level 1 23 | . 5 35 44 . . 11 . . . . 58 . . . . 32 29 28 81 19 4 . . Level 2 19 | . . . 8 100 . . . . . . . . . . . 23 70 71 . . 26 . . Level 3 14 | . . . 36 . . . . . . . . . . . . 1 . . . 1 13 71 100 Level 4 8 | . . . . . . . . . . . . . . . . . . . . . 33 28 . Level 5 4 | . . . . . . . . . . . . . . . . . . . . . 21 . . High Security . | . . . . . . . . . . . . . . . . . . . . . . . . Max Security . | . . . . . . . . . . . . . . . . . . . . . . . . Squads Dispatched 63 | . 1 1 7 1 . 5 . . . 1 8 . . . . 6 1 . . 2 24 6 . Investigation 7 | . 1 . 2 . . . . . . . 1 . . . . . 1 . . . 1 1 . Extermination 12 | . . . . . . 2 . . . . 1 . . . . 3 . . . . 5 1 . Reinforcement 18 | . . 1 3 1 . 3 . . . . 3 . . . . 2 . . . 1 4 . . Assault 20 | . . . 2 . . . . . . 1 . . . . . 1 . . . 1 12 3 . Garrison 6 | . . . . . . . . . . . 3 . . . . . . . . . 2 1 . Intercept . | . . . . . . . . . . . . . . . . . . . . . . . . Construction Impeded 9 | . . . . . . 2 . . . . 2 . . . . 2 . . . 1 2 . . Haulers Reinforced 1 | . . . . . . . . . . . . . . . . . . . . . 1 . . Stealth | -11 -10 -9 -8 -7 -7 -7 -7 -7 -7 -6 -6 -6 -6 -6 -5 -5 -5 -5 -5 -5 -4 -3 -3 --------- Run | Scr Mat Mat Mat Fac Was Fac Low Low Zio Pro Fac Low Low Dat Pro Fac Ext Cet Arc Hub Fac Res Gar Distress Signals 26 | . 4 3 8 . . 2 . . . . 3 . . . . . 1 2 . . 3 . . Communications Jammed 33 | . . . . . . . . . . . . . . . . . . . . . 33 . . Distress Signals 31 | . . . . . . . . . . . . . . . . . . . . . 31 . . Times Spotted 482 | . 25 30 66 5 4 11 12 11 . 22 21 7 2 . 11 38 13 15 9 18 112 26 24 Peak Tracking Total 18 | . 5 8 12 3 3 3 9 5 . 9 4 4 2 . 5 6 4 5 1 14 10 7 18 Tactical Retreats 32 | . 4 6 2 . . . . . . . . 2 . . . 3 . . . 1 11 1 2 Traps | -11 -10 -9 -8 -7 -7 -7 -7 -7 -7 -6 -6 -6 -6 -6 -5 -5 -5 -5 -5 -5 -4 -3 -3 ------- Run | Scr Mat Mat Mat Fac Was Fac Low Low Zio Pro Fac Low Low Dat Pro Fac Ext Cet Arc Hub Fac Res Gar Traps Triggered 22 | . 2 . . 3 . . . . . . . . . . . 2 4 . . 1 5 3 2 Indirectly 1 | . . . . . . . . . . . . . . . . . . . . 1 . . . Trap Hack Attempts . | . . . . . . . . . . . . . . . . . . . . . . . . Triggered . | . . . . . . . . . . . . . . . . . . . . . . . . Disarmed . | . . . . . . . . . . . . . . . . . . . . . . . . Reprogrammed . | . . . . . . . . . . . . . . . . . . . . . . . . Reused . | . . . . . . . . . . . . . . . . . . . . . . . . Traps Extracted . | . . . . . . . . . . . . . . . . . . . . . . . . Installed . | . . . . . . . . . . . . . . . . . . . . . . . . Triggered . | . . . . . . . . . . . . . . . . . . . . . . . . Machines | -11 -10 -9 -8 -7 -7 -7 -7 -7 -7 -6 -6 -6 -6 -6 -5 -5 -5 -5 -5 -5 -4 -3 -3 ---------- Run | Scr Mat Mat Mat Fac Was Fac Low Low Zio Pro Fac Low Low Dat Pro Fac Ext Cet Arc Hub Fac Res Gar Machines Disabled 60 | . . . 3 . . . 2 . . 1 2 . . . . 11 1 2 3 15 17 2 1 Max in Single Turn 14 | . . . 1 . . . 1 . . 1 1 . . . . 4 . 1 1 14 5 1 1 Garrison Access 3 | . . . . . . 1 . . . . . . . . . . . . . 1 1 . . Garrison Relay 1 | . . . . . . . . . . . . . . . . . . . . . . . 1 Network Hub 2 | . . . . . . . . . . . . . . . . . . . . 2 . . . Machines Sabotaged . | . . . . . . . . . . . . . . . . . . . . . . . . Garrisons Compromised . | . . . . . . . . . . . . . . . . . . . . . . . . Overloaded Fab Kills . | . . . . . . . . . . . . . . . . . . . . . . . . Fab Network Shutdowns . | . . . . . . . . . . . . . . . . . . . . . . . . Hacking | -11 -10 -9 -8 -7 -7 -7 -7 -7 -7 -6 -6 -6 -6 -6 -5 -5 -5 -5 -5 -5 -4 -3 -3 --------- Run | Scr Mat Mat Mat Fac Was Fac Low Low Zio Pro Fac Low Low Dat Pro Fac Ext Cet Arc Hub Fac Res Gar Machines Accessed 49 | . 5 2 4 . . 5 . . 1 . 3 . 1 4 . 5 3 4 . 3 4 5 . Terminals 38 | . 5 2 4 . . 4 . . . . 2 . . . . 4 3 4 . 3 3 4 . Fabricators . | . . . . . . . . . . . . . . . . . . . . . . . . Repair Stations . | . . . . . . . . . . . . . . . . . . . . . . . . Recycling Units . | . . . . . . . . . . . . . . . . . . . . . . . . Scanalyzers 1 | . . . . . . . . . . . . . . . . 1 . . . . . . . Garrison Access 4 | . . . . . . 1 . . . . 1 . . . . . . . . . 1 1 . Total Hacks 158 | . 19 9 16 . . 11 . . 4 . 4 . 1 24 . 16 11 7 . 5 15 16 . Successful 92 | . 12 7 7 . . 5 . . 4 . . . 1 24 . 11 5 5 . 1 5 5 . Failed 65 | . 6 2 9 . . 6 . . . . 4 . . . . 5 6 2 . 4 10 11 . Catastrophic 12 | . . . 3 . . . . . . . 1 . . . . 1 . . . 2 2 3 . Database Lockouts 1 | . 1 . . . . . . . . . . . . . . . . . . . . . . Manual 86 | . 11 6 15 . . 8 . . . . 3 . . . . 10 9 4 . 5 9 6 . Terminals 115 | . 19 9 16 . . 9 . . . . 2 . . . . 12 11 7 . 5 10 15 . Fabricators . | . . . . . . . . . . . . . . . . . . . . . . . . Repair Stations . | . . . . . . . . . . . . . . . . . . . . . . . . Recycling Units . | . . . . . . . . . . . . . . . . . . . . . . . . Scanalyzers 4 | . . . . . . . . . . . . . . . . 4 . . . . . . . Garrison Access 10 | . . . . . . 2 . . . . 2 . . . . . . . . . 5 1 . Terminal Hacks 54 | . 5 4 4 . . . . . 4 . . . 1 24 . 2 3 2 . . 3 2 . Record 12 | . . . . . . . . . . . . . . 11 . . . 1 . . . . . Part Schematic 10 | . . . . . . . . . 4 . . . . 6 . . . . . . . . . Robot Schematic 4 | . . . . . . . . . . . . . . 4 . . . . . . . . . Robot Analysis 3 | . 1 1 . . . . . . . . . . . . . . 1 . . . . . . Prototype ID Bank 13 | . 4 1 3 . . . . . . . . . . 3 . 1 1 . . . . . . Open Door 2 | . . . . . . . . . . . . . 1 . . . . 1 . . . . . Level Access Points 1 | . . . . . . . . . . . . . . . . . 1 . . . . . . Branch Access Points 2 | . . 1 . . . . . . . . . . . . . 1 . . . . . . . Alert Level 2 | . . . . . . . . . . . . . . . . . . . . . 1 1 . Unreport Threat 2 | . . . . . . . . . . . . . . . . . . . . . 2 . . Recall Reinforcements 1 | . . . 1 . . . . . . . . . . . . . . . . . . . . Zone Layout 2 | . . 1 . . . . . . . . . . . . . . . . . . . 1 . Fabricator Hacks . | . . . . . . . . . . . . . . . . . . . . . . . . Repair Station Hacks . | . . . . . . . . . . . . . . . . . . . . . . . . Recycling Unit Hacks . | . . . . . . . . . . . . . . . . . . . . . . . . Scanalyzer 4 | . . . . . . . . . . . . . . . . 4 . . . . . . . Insert Component 2 | . . . . . . . . . . . . . . . . 2 . . . . . . . Analyze 2 | . . . . . . . . . . . . . . . . 2 . . . . . . . Garrison Access Hacks 3 | . . . . . . 1 . . . . . . . . . . . . . . 1 1 . Unlock Access 1 | . . . . . . . . . . . . . . . . . . . . . . 1 . Seal Access 2 | . . . . . . 1 . . . . . . . . . . . . . . 1 . . Unauthorized Hacks 82 | . 16 6 7 . . 12 . . . . 2 . . . . 11 8 7 . 5 3 5 . Terminals 31 | . 7 3 3 . . 4 . . . . . . . . . 5 2 3 . 1 1 2 . Track 8 | . 2 1 1 . . 1 . . . . . . . . . 1 1 . . . . 1 . Botnet 18 | . 4 1 1 . . 2 . . . . . . . . . 3 1 3 . 1 1 1 . Operators 5 | . 1 1 1 . . 1 . . . . . . . . . 1 . . . . . . . Fabricators . | . . . . . . . . . . . . . . . . . . . . . . . . Repair Stations . | . . . . . . . . . . . . . . . . . . . . . . . . Recycling Units . | . . . . . . . . . . . . . . . . . . . . . . . . Scanalyzers . | . . . . . . . . . . . . . . . . . . . . . . . . Garrison Access . | . . . . . . . . . . . . . . . . . . . . . . . . Data Cores Recovered . | . . . . . . . . . . . . . . . . . . . . . . . . Used . | . . . . . . . . . . . . . . . . . . . . . . . . Hacking Detections 31 | . 2 1 3 . . 5 . . . . 3 . . . . 4 3 1 . 3 2 4 . Full Trace Events 3 | . . . 1 . . . . . . . 1 . . . . . . . . . . 1 . Feedback Events . | . . . . . . . . . . . . . . . . . . . . . . . . Feedback Blocked . | . . . . . . . . . . . . . . . . . . . . . . . . Robot Schematics Acquired 4 | . . . . . . . . . . . . . . 4 . . . . . . . . . Robots Built . | . . . . . . . . . . . . . . . . . . . . . . . . Matter . | . . . . . . . . . . . . . . . . . . . . . . . . Time . | . . . . . . . . . . . . . . . . . . . . . . . . Total Robot Build Rating . | . . . . . . . . . . . . . . . . . . . . . . . . Part Schematics Acquired 12 | . . . . . . . . . 4 . . . . 6 . 2 . . . . . . . Parts Built . | . . . . . . . . . . . . . . . . . . . . . . . . Matter . | . . . . . . . . . . . . . . . . . . . . . . . . Time . | . . . . . . . . . . . . . . . . . . . . . . . . Total Part Build Rating . | . . . . . . . . . . . . . . . . . . . . . . . . Parts Repaired . | . . . . . . . . . . . . . . . . . . . . . . . . Time . | . . . . . . . . . . . . . . . . . . . . . . . . Parts Recycled . | . . . . . . . . . . . . . . . . . . . . . . . . Recycled Matter . | . . . . . . . . . . . . . . . . . . . . . . . . Retrieved Matter . | . . . . . . . . . . . . . . . . . . . . . . . . Retrieved Components . | . . . . . . . . . . . . . . . . . . . . . . . . Parts Scanalyzed 2 | . . . . . . . . . . . . . . . . 2 . . . . . . . Part Schematics Acquired 2 | . . . . . . . . . . . . . . . . 2 . . . . . . . Parts Damaged . | . . . . . . . . . . . . . . . . . . . . . . . . Bothacking | -11 -10 -9 -8 -7 -7 -7 -7 -7 -7 -6 -6 -6 -6 -6 -5 -5 -5 -5 -5 -5 -4 -3 -3 ------------ Run | Scr Mat Mat Mat Fac Was Fac Low Low Zio Pro Fac Low Low Dat Pro Fac Ext Cet Arc Hub Fac Res Gar Used RIF Installer 1 | . . . . . . . . . . . . . . . . . . . . . . . 1 Robots Hacked 2 | . . . . . . . . . . . . . . . . . . . 2 . . . . Non-combat 2 | . . . . . . . . . . . . . . . . . . . 2 . . . . Combat . | . . . . . . . . . . . . . . . . . . . . . . . . Robot Hacks Applied 2 | . . . . . . . . . . . . . . . . . . . 2 . . . . check_alert 2 | . . . . . . . . . . . . . . . . . . . 2 . . . . Relay Couplers Released 6 | . . . . . . . . . . . . . . . . . . . . 2 . . 4 Machine Destruction 6 | . . . . . . . . . . . . . . . . . . . . 2 . . 4 Robots Rewired 10 | . . . . . . . 2 . . 2 . . . . . . 6 . . . . . . Allies Hacked . | . . . . . . . . . . . . . . . . . . . . . . . . Hacks Repelled . | . . . . . . . . . . . . . . . . . . . . . . . . Allies | -11 -10 -9 -8 -7 -7 -7 -7 -7 -7 -6 -6 -6 -6 -6 -5 -5 -5 -5 -5 -5 -4 -3 -3 -------- Run | Scr Mat Mat Mat Fac Was Fac Low Low Zio Pro Fac Low Low Dat Pro Fac Ext Cet Arc Hub Fac Res Gar Total Allies 17 | . . . . . . . 2 . 2 2 . . . . 1 . 10 . . . . . . Largest Group 9 | . . . . . . . 2 2 2 2 . . . . 1 1 9 8 . . . . . Highest-Rated Group 371 | . . . . . . . 48 48 48 61 . . . . 94 94 371 348 . . . . . Highest-Rated Ally 156 | . . . . . . . 32 32 28 32 . . . . 94 94 156 156 . . . . . Total Orders . | . . . . . . . . . . . . . . . . . . . . . . . . Ally Attacks 176 | . . . . . . . . 20 . 15 . . . . 8 14 52 67 . . . . . Total Damage 4905 | . . . . . . . . 563 . 377 . . . . 327 544 1255 1839 . . . . . Kills 31 | . . . . . . . . 4 . 2 . . . . 3 5 10 7 . . . . . Allies Corrupted . | . . . . . . . . . . . . . . . . . . . . . . . . Allies Melted . | . . . . . . . . . . . . . . . . . . . . . . . . Intel | -11 -10 -9 -8 -7 -7 -7 -7 -7 -7 -6 -6 -6 -6 -6 -5 -5 -5 -5 -5 -5 -4 -3 -3 ------- Run | Scr Mat Mat Mat Fac Was Fac Low Low Zio Pro Fac Low Low Dat Pro Fac Ext Cet Arc Hub Fac Res Gar Robot Analysis Total 3 | . 1 1 . . . . . . . . . . . . . . 1 . . . . . . Derelict Logs Recovered 9 | . . . . . . . 3 . 1 2 . . 2 . 1 . . . . . . . . Drone Launches . | . . . . . . . . . . . . . . . . . . . . . . . . Drone Recoveries . | . . . . . . . . . . . . . . . . . . . . . . . . Exploration | -11 -10 -9 -8 -7 -7 -7 -7 -7 -7 -6 -6 -6 -6 -6 -5 -5 -5 -5 -5 -5 -4 -3 -3 ------------- Run | Scr Mat Mat Mat Fac Was Fac Low Low Zio Pro Fac Low Low Dat Pro Fac Ext Cet Arc Hub Fac Res Gar Turns Passed 19981 | 66 716 1021 1104 393 247 1069 503 630 1156 490 1332 520 762 151 648 2140 1264 419 463 336 2830 1047 674 Spaces Moved 10010 | 40 351 453 469 221 207 766 263 354 711 265 661 293 434 83 341 1011 523 194 134 169 1138 531 398 Core 202 | 5 . . . . 135 1 . . . . . . . . . . . . . . . . 61 Treads 9249 | 35 351 279 469 221 67 447 263 354 711 265 661 293 434 83 341 1011 523 194 134 169 1138 531 275 Legs 174 | . . 174 . . . . . . . . . . . . . . . . . . . . . Wheels . | . . . . . . . . . . . . . . . . . . . . . . . . Hover 323 | . . . . . 5 318 . . . . . . . . . . . . . . . . . Flight 62 | . . . . . . . . . . . . . . . . . . . . . . . 62 Fastest Speed 40 | 50 160 150 160 160 50 60 160 160 160 160 160 163 163 183 163 160 180 160 160 160 160 152 40 Average Speed 158 | 146 160 157 160 160 85 119 160 160 160 160 163 163 169 183 163 167 180 163 160 162 177 156 120 Slowest Speed 300 | 160 160 180 180 160 160 300 160 160 160 160 185 163 183 183 183 200 180 180 160 165 200 160 180 Overloaded Moves . | . . . . . . . . . . . . . . . . . . . . . . . . Propulsion Burnouts . | . . . . . . . . . . . . . . . . . . . . . . . . Robots Hopped 2 | . . . . . . . . . . . . . . . . . . . . . . . 2 Cave-ins Triggered . | . . . . . . . . . . . . . . . . . . . . . . . . Exploration Rate (%) 48 | 4 75 36 52 7 73 25 44 54 82 52 19 50 67 69 51 32 78 85 86 25 31 22 36 Regions Visited 23 Branch Regions 12 Pre-discovered Areas 5 | . . . . . . . . . 2 1 . . . 1 1 . . . . . . . . Known Exits Taken 12 | . . . . . . . . . . . 1 1 1 1 1 1 1 1 1 1 1 1 . Unknown Exits Taken 9 | 1 1 1 1 . . 1 1 1 1 1 . . . . . . . . . . . . . Scrap Searched 10 | . . . . . . . 2 . 5 . . 1 1 . 1 . . . . . . . . Spaces Dug 79 | . . . . . . . . . . . 1 . . . . 10 . . . 4 32 11 21 Terrain Destroyed 1354 | . 10 38 48 . 22 26 12 . . 114 20 2 5 . 71 119 4 9 16 301 403 61 73 Melee 38 | . . . . . . . . . . . 1 . . . . 10 . . . . 6 . 21 Projectile 231 | . . 3 1 . . 1 . . . 1 6 2 5 . 4 41 4 9 16 17 112 8 1 AOE 1085 | . 10 35 47 . 22 25 12 . . 113 13 . . . 67 68 . . . 284 285 53 51 Actions | -11 -10 -9 -8 -7 -7 -7 -7 -7 -7 -6 -6 -6 -6 -6 -5 -5 -5 -5 -5 -5 -4 -3 -3 --------- Run | Scr Mat Mat Mat Fac Was Fac Low Low Zio Pro Fac Low Low Dat Pro Fac Ext Cet Arc Hub Fac Res Gar Total 12482 | 45 428 631 642 249 241 855 314 385 733 305 820 315 452 82 394 1258 802 249 341 198 1552 670 521 Wait 739 | . 16 52 8 . 12 10 6 4 1 . 28 7 4 . 19 51 174 4 169 8 84 46 36 Move 9986 | 39 350 452 468 221 206 765 262 353 710 264 660 292 433 82 340 1010 523 193 133 168 1137 531 394 Hop 2 | . . . . . . . . . . . . . . . . . . . . . . . 2 Pick Up 123 | . 9 11 18 5 1 7 . . 2 . 12 1 1 . 2 15 5 5 1 1 15 9 3 Fast Attach 209 | 6 2 12 10 3 3 19 5 4 7 5 18 . 1 . 3 25 7 5 4 2 48 17 3 Attach 79 | . 1 4 9 2 2 2 . . . . 3 1 1 . 1 9 1 . . . 25 8 10 Detach 29 | . . 1 2 . . 2 . . . . 2 . . . . 2 . . . . 13 5 2 Swap 148 | . 5 8 8 2 1 3 6 3 2 7 17 2 4 . 4 24 15 4 6 4 19 4 . Drop 240 | . 2 23 17 8 . 8 5 7 11 3 30 1 3 . 3 31 21 16 9 3 26 10 3 Fire 780 | . 43 68 102 8 16 31 18 14 . 18 49 11 5 . 22 81 18 22 17 11 174 40 12 Melee 59 | . . . . . . . . . . . 1 . . . . 10 4 . 2 . 6 . 36 Ram 5 | . . . . . . 3 . . . . . . . . . . . . . . . . 2 Kick . | . . . . . . . . . . . . . . . . . . . . . . . . Crush 15 | . . . . . . 5 . . . . . . . . . . . . . 1 3 . 6 Escape Stasis 18 | . . . . . . . . . . . . . . . . . 4 . . . 2 . 12 Rewire 50 | . . . . . . . 12 . . 8 . . . . . . 30 . . . . . . Trap . | . . . . . . . . . . . . . . . . . . . . . . . . Miscellaneous . | . . . . . . . . . . . . . . . . . . . . . . . . Route ------- -11/Scrapyard -10/Materials (discovered 3 exits: *Mat / [*Min x2]) -9/Materials (discovered 3 exits: *Mat / *Min x2) -8/Materials -7/Factory -7/Waste -7/Factory (discovered 4 exits: *Fac x2 / [*Low x2]) -7/Lower Caves -7/Lower Caves -7/Zion -6/Proximity Caves -6/Factory (discovered 3 exits: *Fac x2 / *Low) -6/Lower Caves -6/Lower Caves -6/Data Miner -5/Proximity Caves -5/Factory (discovered 6 exits: *Fac x2 / Upp x2 / *Ext x2) -5/Extension (discovered 3 exits: *Fac x2 / *Cet) -5/Cetus (discovered 2 exits: *Fac / *Arc) -5/Archives (discovered 3 exits: *Fac / *Hub x2) -5/Hub_04(d) -4/Factory (discovered 2 exits: *Res x2) -3/Research -3/Garrison History --------- Turn | Location | Event 3 | -11/Scrapyard | Discovered new exit (range 15) 67 | -11/Scrapyard | Entered Materials 261 | -10/Materials | Discovered new exit (range 12) 315 | -10/Materials | Build established: Mutant 366 | -10/Materials | Central database locked down 585 | -10/Materials | Discovered new exit (range 15) 757 | -10/Materials | Discovered new exit (range 16) 783 | -10/Materials | Entered another Materials area 783 | -9/Materials | Evolved 2 slots: Utility x1, Weapon x1 825 | -9/Materials | Discovered new exit (range 16) 1439 | -9/Materials | Build established: Gunner 1451 | -9/Materials | Discovered new exit (range 11) 1525 | -9/Materials | Identified exit to Mines 1804 | -9/Materials | Entered another Materials area 1804 | -8/Materials | Evolved 2 slots: Propulsion x1, Utility x1 2261 | -8/Materials | Build established: Tank 2495 | -8/Materials | Destroyed 10 combat bots 2604 | -8/Materials | First assault squad dispatched 2741 | -8/Materials | Lost 7 parts (1p2n4w) 2753 | -8/Materials | Destroyed 10 combat bots 2868 | -8/Materials | Discovered new exit (range 6) 2908 | -8/Materials | Entered Factory 2908 | -7/Factory | Evolved 2 slots: Utility x1, Weapon x1 2999 | -7/Factory | Discovered new exit (range 3) 3195 | -7/Factory | Build established: Gunner 3301 | -7/Factory | Sucked down chute 3301 | -7/Factory | Entered Waste 3317 | -7/Waste | Spotted C-40 Crusher 3362 | -7/Waste | Crushed by Compactor (1 part destroyed, 1 dropped) 3367 | -7/Waste | Crushed by Compactor (1 part destroyed, 2 dropped) 3373 | -7/Waste | Destroyed C-40 Crusher 3375 | -7/Waste | Spotted C-40 Crusher 3398 | -7/Waste | Lost 3 parts (3w) 3430 | -7/Waste | Spotted C-40 Crusher 3459 | -7/Waste | Spotted C-40 Crusher 3464 | -7/Waste | Crushed by Compactor (1 part destroyed, 2 dropped) 3469 | -7/Waste | Released all parts (7) 3521 | -7/Waste | Spotted C-40 Crusher 3522 | -7/Waste | Spotted C-40 Crusher 3536 | -7/Waste | Discovered new exit (range 12) 3548 | -7/Waste | Entered Factory 3661 | -7/Factory | Discovered new exit (range 14) 3705 | -7/Factory | Build established: Mutant 3855 | -7/Factory | Lost 4 parts (1p1n1u1w) 4106 | -7/Factory | Discovered new exit (range 10) 4418 | -7/Factory | Discovered new exit (range 3) 4559 | -7/Factory | Discovered new exit (range 11) 4593 | -7/Factory | Build established: Tank 4617 | -7/Factory | Entered Lower Caves 4739 | -7/Lower Caves | Learned Factory terminal intel 4835 | -7/Lower Caves | Attracted the attention of an 0b10 checkpoint 4906 | -7/Lower Caves | Learned 8 Factory zone layouts 4928 | -7/Lower Caves | Learned 4 Factory zone layouts 4978 | -7/Lower Caves | Attracted the attention of an 0b10 outpost 5013 | -7/Lower Caves | Destroyed 9 combat bots 5054 | -7/Lower Caves | Discovered new exit (range 10) 5120 | -7/Lower Caves | Entered another Lower Caves area 5120 | -7/Lower Caves | Accompanied by 2 allies 5391 | -7/Lower Caves | Build established: Scavenger-Tank 5439 | -7/Lower Caves | Attracted the attention of an 0b10 checkpoint 5672 | -7/Lower Caves | Discovered new exit (range 8) 5750 | -7/Lower Caves | Entered Zion 5911 | -7/Zion | System corruption cleaned by Quarantine Array 5990 | -7/Zion | Gained Derelict followers 6130 | -7/Zion | Build established: Scavenger-Mutant 6284 | -7/Zion | Learned location of Recycling (-7) 6685 | -7/Zion | Learned 4 Factory zone layouts 6849 | -7/Zion | Found Prototype Device 6849 | -7/Zion | Identified Phasing AFG 6875 | -7/Zion | Build established: Scavenger-Tank 6881 | -7/Zion | Discovered new exit (range 15) 6906 | -7/Zion | Entered Proximity Caves 6906 | -6/Proximity Caves | Accompanied by 2 allies 7021 | -6/Proximity Caves | Attracted the attention of an 0b10 outpost 7028 | -6/Proximity Caves | Core integrity fell below 50% 7060 | -6/Proximity Caves | Destroyed 9 combat bots 7295 | -6/Proximity Caves | Learned Factory security intel 7332 | -6/Proximity Caves | Discovered new exit (range 10) 7396 | -6/Proximity Caves | Entered Factory 7396 | -6/Factory | Evolved 2 slots: Utility x2 7397 | -6/Factory | Identified exit to Lower Caves 7399 | -6/Factory | Loaded intel: 20 terminal locations 7628 | -6/Factory | Discovered new exit (range 9) 7801 | -6/Factory | Garrison activated, responded to threat 8280 | -6/Factory | Discovered new exit (range 12) 8728 | -6/Factory | Entered Lower Caves 8741 | -6/Lower Caves | Hvy. Laser stolen by Master Thief 8959 | -6/Lower Caves | Attracted the attention of an 0b10 checkpoint 9127 | -6/Lower Caves | Build established: Scavenger-Gunner 9141 | -6/Lower Caves | Discovered new exit (range 14) 9246 | -6/Lower Caves | Identified exit to Lower Caves 9248 | -6/Lower Caves | Entered another Lower Caves area 9433 | -6/Lower Caves | Build established: Scavenger-Skirmisher 9536 | -6/Lower Caves | Encountered a Warlord checkpoint 9658 | -6/Lower Caves | Learned Factory machine intel 9799 | -6/Lower Caves | Learned Factory security intel 9992 | -6/Lower Caves | Discovered new exit (range 4) 9997 | -6/Lower Caves | Identified exit to Data Miner 10010 | -6/Lower Caves | Entered Data Miner 10010 | -6/Data Miner | Discovered new exit (range 6) 10045 | -6/Data Miner | Met Data Miner 10097 | -6/Data Miner | Learned location of Section 7 (-2) 10097 | -6/Data Miner | Acquired the access code to Warlord's prototype stash 10113 | -6/Data Miner | Received God Mode back door access code from Data Miner 10151 | -6/Data Miner | Identified exit to Proximity Caves 10161 | -6/Data Miner | Entered Proximity Caves 10231 | -5/Proximity Caves | Escorted by Enhanced Grunt 10552 | -5/Proximity Caves | Attracted the attention of an 0b10 checkpoint 10690 | -5/Proximity Caves | Learned location of Armory (-4) 10780 | -5/Proximity Caves | Discovered new exit (range 13) 10802 | -5/Proximity Caves | Identified exit to Factory 10809 | -5/Proximity Caves | Entered Factory 10809 | -5/Factory | Accompanied by 1 ally 10809 | -5/Factory | Evolved 2 slots: Utility x1, Weapon x1 10811 | -5/Factory | Loaded intel: 233 machine locations 11175 | -5/Factory | Build established: Scavenger-Tank 11766 | -5/Factory | Lost 4 parts (1n1u2w) 11844 | -5/Factory | Discovered new exit (range 18) 11920 | -5/Factory | Identified exit to Factory 12136 | -5/Factory | Identified exit to Upper Caves 12136 | -5/Factory | Identified exit to Extension 12159 | -5/Factory | Build established: Scavenger-Assassin 12426 | -5/Factory | Discovered exit to Factory (range 13) 12540 | -5/Factory | Spotted B-75 Beast 12754 | -5/Factory | Build established: Scavenger-Gunner 12909 | -5/Factory | First assault squad dispatched 12932 | -5/Factory | Incoming assault squad redirected 12949 | -5/Factory | Entered Extension 13153 | -5/Extension | Rescued A7 13446 | -5/Extension | Incoming investigation squad redirected 13632 | -5/Extension | Spotted B-75 Beast 13649 | -5/Extension | Allies destroyed B-75 Beast 13652 | -5/Extension | Spotted B-75 Beast 13680 | -5/Extension | Build established: Scavenger-Skirmisher 13680 | -5/Extension | Allies destroyed B-75 Beast 13864 | -5/Extension | Rescued a captive Derelict 14006 | -5/Extension | Rescued a captive Derelict 14007 | -5/Extension | Rescued a captive Derelict 14126 | -5/Extension | Discovered new exit (range 6) 14175 | -5/Extension | Identified exit to Cetus 14213 | -5/Extension | Entered Cetus 14213 | -5/Cetus | Accompanied by 8 allies 14218 | -5/Cetus | Acquired a Cetus Manufacturing Module code from A7 14228 | -5/Cetus | Spotted Cetus Guard 14231 | -5/Cetus | Spotted Cetus Guard 14232 | -5/Cetus | Build established: Scavenger-Tank 14232 | -5/Cetus | Spotted Cetus Guard 14241 | -5/Cetus | Allies destroyed Cetus Guard 14242 | -5/Cetus | Allies destroyed Cetus Guard 14246 | -5/Cetus | Spotted Cetus Guard 14250 | -5/Cetus | Destroyed Cetus Guard 14257 | -5/Cetus | Allies destroyed Cetus Guard 14316 | -5/Cetus | Cetus Manufacturing Module disabled 14419 | -5/Cetus | Escorted A7 to Cetus Mainframe 14424 | -5/Cetus | Discovered new exit (range 23) 14461 | -5/Cetus | Spotted Cetus Guard 14462 | -5/Cetus | Spotted Cetus Guard 14472 | -5/Cetus | Destroyed Cetus Guard 14473 | -5/Cetus | Spotted Cetus Guard 14476 | -5/Cetus | Spotted Cetus Guard 14493 | -5/Cetus | Destroyed Cetus Guard 14500 | -5/Cetus | Discovered exit to Factory (range 23) 14504 | -5/Cetus | Extracted ID and sensor layout for unrecognized location from A7's data core 14515 | -5/Cetus | Destroyed Cetus Guard 14523 | -5/Cetus | Destroyed Cetus Guard 14547 | -5/Cetus | Met Revision 17 14630 | -5/Cetus | Identified exit to Archives 14632 | -5/Cetus | Entered Archives 14720 | -5/Archives | Discovered new exit (range 22) 14731 | -5/Archives | Discovered exit to Factory (range 16) 14763 | -5/Archives | Discovered new exit (range 23) 14977 | -5/Archives | Build established: Scavenger-Gunner 15093 | -5/Archives | Identified exit to Hub_04(d) 15095 | -5/Archives | Entered Hub_04(d) 15343 | -5/Hub_04(d) | Discovered exit to Factory (range 7) 15391 | -5/Hub_04(d) | Build established: Scavenger-Skirmisher 15425 | -5/Hub_04(d) | Network Hub disabled 15425 | -5/Hub_04(d) | Network Hub disabled 15425 | -5/Hub_04(d) | Spotted Lightning 15425 | -5/Hub_04(d) | Spotted Lightning 15425 | -5/Hub_04(d) | Spotted Lightning 15425 | -5/Hub_04(d) | Spotted Lightning 15425 | -5/Hub_04(d) | Spotted Lightning 15425 | -5/Hub_04(d) | Spotted Lightning 15425 | -5/Hub_04(d) | Spotted Lightning 15425 | -5/Hub_04(d) | Spotted Lightning 15426 | -5/Hub_04(d) | Destroyed Lightning 15426 | -5/Hub_04(d) | Destroyed Lightning 15426 | -5/Hub_04(d) | Spotted Lightning 15427 | -5/Hub_04(d) | Disrupted transfer network 15427 | -5/Hub_04(d) | Spotted Lightning 15430 | -5/Hub_04(d) | System corruption reached 10% 15431 | -5/Hub_04(d) | Entered Factory 15431 | -4/Factory | Evolved 2 slots: Power x1, Utility x1 15447 | -4/Factory | Destroyed 7 combat bots 15681 | -4/Factory | First assault squad dispatched 15958 | -4/Factory | Destroyed 8 combat bots 16209 | -4/Factory | Incoming assault squad redirected 16224 | -4/Factory | Build established: Scavenger-Gunner 16283 | -4/Factory | Lost 6 parts (2p1u3w) 16413 | -4/Factory | Destroyed 8 combat bots 16466 | -4/Factory | Incoming assault squad redirected 16480 | -4/Factory | Lost 4 parts (2u2w) 16483 | -4/Factory | Destroyed 8 combat bots 16512 | -4/Factory | Spotted B-86 Titan 16589 | -4/Factory | Destroyed B-86 Titan 16684 | -4/Factory | Discovered new exit (range 16) 16701 | -4/Factory | Incoming assault squad redirected 16702 | -4/Factory | Incoming assault squad redirected 16710 | -4/Factory | Identified exit to Research 16779 | -4/Factory | Lost 5 parts (1p1u3w) 16946 | -4/Factory | Incoming assault squad redirected 16954 | -4/Factory | Incoming assault squad redirected 17348 | -4/Factory | Build established: Scavenger-Skirmisher 17449 | -4/Factory | Incoming assault squad redirected 17449 | -4/Factory | Incoming assault squad redirected 17661 | -4/Factory | Lost 3 parts (1u2w) 17702 | -4/Factory | Incoming assault squad redirected 17800 | -4/Factory | Lost 3 parts (1u2w) 17883 | -4/Factory | Lost 6 parts (2n4w) 18049 | -4/Factory | Build established: Scavenger-Gunner 18080 | -4/Factory | Core integrity fell below 50% 18243 | -4/Factory | Discovered exit to Research (range 15) 18261 | -4/Factory | Entered Research 18261 | -3/Research | Evolved 2 slots: Propulsion x1, Utility x1 18291 | -3/Research | Lost 4 parts (1n3w) 18511 | -3/Research | First assault squad dispatched 18540 | -3/Research | Incoming assault squad redirected 18616 | -3/Research | Incoming investigation squad redirected 19040 | -3/Research | Incoming assault squad redirected 19280 | -3/Research | Garrison activated, responded to threat 19282 | -3/Research | Incoming assault squad redirected 19308 | -3/Research | Identified exit to Garrison 19308 | -3/Research | Entered Garrison 19318 | -3/Garrison | Installed Relay Interface Framework 19336 | -3/Garrison | Lost 6 parts (1p2u3w) 19350 | -3/Garrison | Triggered checkpoint 19414 | -3/Garrison | Garrison Relay disabled 19489 | -3/Garrison | Spotted B-86 Titan 19574 | -3/Garrison | Build established: Mutant 19590 | -3/Garrison | Triggered checkpoint 19888 | -3/Garrison | Core integrity fell below 50% 19922 | -3/Garrison | Lost 13 parts (2p3n4u4w) 19968 | -3/Garrison | Core integrity fell below 20% 19970 | -3/Garrison | Triggered checkpoint 19982 | -3/Garrison | Destroyed by S-43 Plague with Heavy Machine Gun Last Messages --------------- 19943_ Field strength at 58. 19944_ Field strength at 52. 19944_ Slug penetrates Wall. 19944_ Penetrated by Slug. 19945_ Field strength at 40. 19946_ Field strength at 34. 19947_ Field strength at 28. 19948_ Field strength at 22. 19949_ WD/, J,N8JC0KO83K%YX 19949_ Field strength at 16. 19949_ Slug penetrates Wall. 19950_ Field strength at 4. 19951_ Stasis field depleted. 19967_ Penetrated by Slug. 19970_ Beams of light sweep through the air. An alarm sounds. 19970_ C-30 ARC bursts open, deploying its payload. 19970_ S-43 Plague unfolds itself. 19970_ Adv. Heat Sink destroyed. 19977_ Adv. Targeting Computer destroyed. 19978_ Slammed into S-43 Plague. Map ----- +----------------------------------------------------+ | ?????????????????????????????????????????????????? | | ?????????????????????????????????????????????????? | | ?????????????????????????????????????????????????? | | ?????????????????????????????????????????????????? | | ?????????????????????????????????????????????????? | | ?????????????????????????????????????????????????? | | ?????????????????????????????????????????????????? | | ?????????????????????????????????????????????????? | | ?????????????????????????????????????????????????? | | ?????????????????????????????????????????????????? | | ?????????????????????????????????????????????????? | | ?????????????????????????????????????????????????? | | ?????????????????????????????????????????????????? | | ?????????????????????????????????????????????????? | | ?????????????????????????????????????????????????? | | ?????????????????????????????????????????????????? | | ?????????????????????????????????????????????????? | | ?????????????????????????????????????????????????? | | ?????????????????????????????????????????????????? | | ?????????????????????????????????????????????????? | | ?????????????????????????????????????????????????? | | ?????????????????????????????????????????????????? | | ?????????????????????????????????????????????????? | | ???????????????????????????????#?????????????????? | | ?????????????################ #?????????????????? | | ?????????????# s @ #?????????????????? | | ?????????????# s #?????????????????? | | ?????????????# #####s#####s####?????????????????? | | ?????????????# #???# #???? #????????????????????? | | ?????????????# #???# #?????#????????????????????? | | ?????????????# ##### #####??????????????????????? | | ?????????????# " #??????????????????????? | | ???????####??# ##### #####??????????????????????? | | ??#????# ?# #???# #??????????????????????????? | | ??# ## ## ##??# #??????????????????????????? | | ?## #??# #??????????????????????????? | | " " ? #??????????????????????????? | | ??# ######??????????????????????????? | | ??# ## ## #???????????????????????????????? | | ??# ## ## ###?????????????????????????????? | | ??" #?????????????????????????????? | | ??" #?????????????????????????????? | | ??" " #?????????????????????????????? | | ??" "%" ###?##????????????????????????? | | ??# ## ## ### ## #????????????????????????? | | ??# ## ## #?# # #?????????###?????????????? | | ??# ###""##?????????# #?????????????? | | ??# # ##?????###??# #?????????????? | | ??# ### #??????# #??# ##????????????? | | ??## ##""""## #?# ########"####""#????????????? | +----------------------------------------------------+ Best States ------------- Heat Dissipation 96 Coolant Potential 80 Energy Generation 45 Energy Capacity 665 Matter Stores 313 Matter Capacity 450 Sight Range 23 Robot Scan Range 20 Terrain Scan Density 10 Jamming Range 16 Power Amplification 20 Additional Mass Support 16 Base Temperature (-) 200 Armor Coverage 600 Resistance: KI 25 Resistance: TH 10 Resistance: EM 20 Utility Shielding 66 Weapon Shielding 66 Weapon Cycling 15 Evasion (%) 62 Targeting Accuracy 8 Target Analysis 8 Core Analysis 8 Recoil Reduction 4 Matter Filtering 30 Kinecelleration 40 Item Schematics ----------------- Riot Gun | -7/Zion | Free Battle Cannon | -7/Zion | Free Tactical Coordination Suite | -7/Zion | Free Enh. Flamer | -7/Zion | Free Combat Drone Bay | -6/Data Miner | Free Lgt. Regenerative Plating | -6/Data Miner | Free Cmb. Gravmag System | -6/Data Miner | Free Exp. Cesium-ion Thruster | -6/Data Miner | Free Mni. Smartbomb Launcher | -6/Data Miner | Free Plasma Sword | -6/Data Miner | Free Coolant Injector | -5/Factory | Scanalyzed Weapon Cycler | -5/Factory | Scanalyzed Robot Schematics ------------------ S-27 Virus | -6/Data Miner | Free G-50 Soldier | -6/Data Miner | Free G-67 Veteran | -6/Data Miner | Free I-36 Angel | -6/Data Miner | Free Fabricated ------------ Nothing Alien Tech Used ----------------- None Achievements -------------- None Challenges ------------ None Game ------ Seed BiocellFissionThrower Manual? 0 Play Time 02:22:27 Cumulative 365.1 hours Start 2020.01.31 @ 14:37:25 End 2020.01.31 @ 23:26:53 Sessions 9 Manual Loads 0 Difficulty Rogue Special Mode None Game No. 226 Rogue 225 Adventurer 0 Explorer 1 Win Type - Total 35 Types 26/2/4/2/1/0/0 Lore% 90 Gallery% 92 Achievement% 86 Wizard Run 0 Options --------- ASCII 0 Keyboard 0 Movement Numpad Keybinds 0 Fullscreen 1 Font 18/X11Bold Map View 76x50 Tactical HUD 1 Map Filters NONE Filters NONE Steam 1 RUN: 2c2aea20-c218-41b4-9ba2-e0928cbb5118